[Event "Live Chess"]
[Site "Chess.com"]
[Date "2021.04.16"]
[Round "3"]
[White "maturner"]
[Black "Loltheawesomedude"]
[Result "1-0"]
[CurrentPosition "n5k1/1p2R1p1/p5Bp/3p4/P6P/6P1/1PP5/6K1 b - -"]
[Timezone "UTC"]
[ECO "B24"]
[ECOUrl "https://www.chess.com/openings/Sicilian-Defense-Closed-Fianchetto-Variation"]
[UTCDate "2021.04.16"]
[UTCTime "01:30:36"]
[WhiteElo "1853"]
[BlackElo "1455"]
[TimeControl "3600+5"]
[Termination "maturner won by resignation"]
[StartTime "01:30:36"]
[EndDate "2021.04.16"]
[EndTime "02:32:01"]
[Link "https://www.chess.com/game/live/12275763307"]

1. e4 {[%clk 0:59:51.1]} 1... c5 {[%clk 0:59:31.2]} 2. Nc3 {[%clk 0:59:51.7]} 2... Nc6 {[%clk 0:58:50.3]} 3. g3 {[%clk 0:59:51.8]} 3... d6 {[%clk 0:58:26.7]} 4. Bg2 {[%clk 0:59:51]} 4... Nf6 {[%clk 0:57:31.1]} 5. Nge2 {[%clk 0:59:44.7]} 5... e5 {[%clk 0:56:47]} 6. O-O {[%clk 0:59:40]} 6... Be7 {[%clk 0:56:00.2]} 7. d3 {[%clk 0:59:28.9]} 7... Be6 {[%clk 0:55:30.8]} 8. h3 {[%clk 0:58:57.9]} 8... h6 {[%clk 0:54:56.1]} 9. f4 {[%clk 0:58:47]} 9... exf4 {[%clk 0:54:04.8]} 10. Nxf4 {[%clk 0:58:43.7]} 10... Qd7 {[%clk 0:53:20.6]} 11. Kh2 {[%clk 0:58:03.9]} 11... Rd8 {[%clk 0:53:01.5]} 12. Be3 {[%clk 0:57:06.8]} 12... O-O {[%clk 0:51:46.1]} 13. Qd2 {[%clk 0:56:50.8]} 13... Kh7 {[%clk 0:50:22.5]} 14. Rf2 {[%clk 0:50:34]} 14... a6 {[%clk 0:49:16.8]} 15. a4 {[%clk 0:50:21.9]} 15... Nb4 {[%clk 0:47:46.7]} 16. d4 {[%clk 0:44:05.3]} 16... cxd4 {[%clk 0:46:19.7]} 17. Bxd4 {[%clk 0:44:07.4]} 17... d5 {[%clk 0:45:27.2]} 18. e5 {[%clk 0:43:09.4]} 18... Ne8 {[%clk 0:44:47.9]} 19. Nxe6 {[%clk 0:38:44.3]} 19... Qxe6 {[%clk 0:44:28.7]} 20. Ne2 {[%clk 0:37:16.3]} 20... Nc7 {[%clk 0:43:49.5]} 21. h4 {[%clk 0:35:26.3]} 21... Nc6 {[%clk 0:43:31.4]} 22. Bh3 {[%clk 0:34:50.6]} 22... f5 {[%clk 0:42:46.6]} 23. exf6 {[%clk 0:34:34.5]} 23... Qf7 {[%clk 0:41:38.9]} 24. fxe7 {[%clk 0:29:31.3]} 24... Qxf2+ {[%clk 0:41:21.5]} 25. Bxf2 {[%clk 0:29:25.4]} 25... Rxf2+ {[%clk 0:41:21.1]} 26. Kg1 {[%clk 0:29:19.3]} 26... Rxe2 {[%clk 0:40:59.2]} 27. Qxe2 {[%clk 0:29:03.4]} 27... Re8 {[%clk 0:40:49.6]} 28. Re1 {[%clk 0:27:59.1]} 28... Rxe7 {[%clk 0:38:14]} 29. Qxe7 {[%clk 0:27:49.6]} 29... Nxe7 {[%clk 0:37:43.4]} 30. Rxe7 {[%clk 0:27:51.3]} 30... Na8 {[%clk 0:37:18.5]} 31. Bf5+ {[%clk 0:27:27.8]} 31... Kg8 {[%clk 0:37:19.4]} 32. Bg6 {[%clk 0:27:07.3]} 1-0

[Event "Live Chess"]
[Site "Chess.com"]
[Date "2021.04.16"]
[Round "3"]
[White "cccalboy"]
[Black "kevin_mx_sun"]
[Result "0-1"]
[CurrentPosition "2R5/8/6p1/3k3p/7P/7K/8/4q3 w - -"]
[Timezone "UTC"]
[ECO "B36"]
[ECOUrl "https://www.chess.com/openings/Sicilian-Defense-Old-Sicilian-Open-Accelerated-Dragon-Variation"]
[UTCDate "2021.04.16"]
[UTCTime "01:30:21"]
[WhiteElo "1794"]
[BlackElo "1443"]
[TimeControl "3600+5"]
[Termination "kevin_mx_sun won on time"]
[StartTime "01:30:21"]
[EndDate "2021.04.16"]
[EndTime "03:41:12"]
[Link "https://www.chess.com/game/live/12275763605"]

1. e4 {[%clk 1:00:00.6]} 1... c5 {[%clk 1:00:00.5]} 2. Nf3 {[%clk 0:59:59.6]} 2... g6 {[%clk 0:59:49.9]} 3. d4 {[%clk 0:59:59.1]} 3... cxd4 {[%clk 0:59:52.1]} 4. Nxd4 {[%clk 1:00:02.4]} 4... Nc6 {[%clk 0:59:55.6]} 5. c4 {[%clk 1:00:05]} 5... Nf6 {[%clk 0:59:49.5]} 6. Nc3 {[%clk 0:58:41.3]} 6... d6 {[%clk 0:59:39.2]} 7. Be3 {[%clk 0:57:55.1]} 7... Nxd4 {[%clk 0:59:24.8]} 8. Bxd4 {[%clk 0:56:47.5]} 8... Bg7 {[%clk 0:59:19.2]} 9. Be2 {[%clk 0:55:51.7]} 9... O-O {[%clk 0:59:18.7]} 10. O-O {[%clk 0:55:37.2]} 10... Qc7 {[%clk 0:57:56.6]} 11. Rc1 {[%clk 0:51:15.8]} 11... Be6 {[%clk 0:57:08.7]} 12. b3 {[%clk 0:50:00.3]} 12... a5 {[%clk 0:55:59.8]} 13. Nb5 {[%clk 0:46:28.3]} 13... Qc6 {[%clk 0:54:55.4]} 14. f3 {[%clk 0:46:30.7]} 14... Nd7 {[%clk 0:52:51.9]} 15. Bxg7 {[%clk 0:42:52.5]} 15... Kxg7 {[%clk 0:52:46.7]} 16. Kh1 {[%clk 0:42:25.5]} 16... Nc5 {[%clk 0:50:24.6]} 17. Qc2 {[%clk 0:41:07]} 17... f5 {[%clk 0:47:39.5]} 18. Qb2+ {[%clk 0:35:28.1]} 18... Kg8 {[%clk 0:47:12]} 19. e5 {[%clk 0:35:19.6]} 19... dxe5 {[%clk 0:45:05.2]} 20. Qxe5 {[%clk 0:35:16.1]} 20... Bf7 {[%clk 0:44:30.6]} 21. Rcd1 {[%clk 0:33:37.2]} 21... a4 {[%clk 0:39:54.5]} 22. b4 {[%clk 0:29:43.8]} 22... Na6 {[%clk 0:39:10]} 23. a3 {[%clk 0:23:05.7]} 23... Rfd8 {[%clk 0:35:41.8]} 24. Nd4 {[%clk 0:22:10.3]} 24... Qc7 {[%clk 0:33:56.5]} 25. f4 {[%clk 0:20:15.9]} 25... Qxe5 {[%clk 0:32:49.2]} 26. fxe5 {[%clk 0:20:19.2]} 26... Nc7 {[%clk 0:31:17.4]} 27. Bf3 {[%clk 0:20:22.2]} 27... Bxc4 {[%clk 0:30:45.8]} 28. Rfe1 {[%clk 0:20:25.2]} 28... Bd5 {[%clk 0:27:27]} 29. Bxd5+ {[%clk 0:17:47.8]} 29... Nxd5 {[%clk 0:27:00.6]} 30. Ne6 {[%clk 0:17:32.5]} 30... Rd7 {[%clk 0:25:30.9]} 31. Nc5 {[%clk 0:17:35.7]} 31... Rdd8 {[%clk 0:25:23]} 32. Nxb7 {[%clk 0:16:55.9]} 32... Rdb8 {[%clk 0:20:27.5]} 33. Rxd5 {[%clk 0:16:26.4]} 33... Rxb7 {[%clk 0:20:28.4]} 34. e6 {[%clk 0:16:03.5]} 34... Kg7 {[%clk 0:18:19.4]} 35. g4 {[%clk 0:12:56.2]} 35... fxg4 {[%clk 0:17:22.1]} 36. Ree5 {[%clk 0:11:26.9]} 36... Rc7 {[%clk 0:13:40.7]} 37. Rc5 {[%clk 0:11:09.3]} 37... Rxc5 {[%clk 0:13:24.5]} 38. Rxc5 {[%clk 0:10:51.8]} 38... Rd8 {[%clk 0:11:59.8]} 39. b5 {[%clk 0:09:54.1]} 39... Rd1+ {[%clk 0:11:53.3]} 40. Kg2 {[%clk 0:09:56.3]} 40... Rd2+ {[%clk 0:11:38.3]} 41. Kg1 {[%clk 0:08:43.7]} 41... Rb2 {[%clk 0:11:24.5]} 42. Rc4 {[%clk 0:08:17.8]} 42... Rxb5 {[%clk 0:11:16.3]} 43. Rxa4 {[%clk 0:08:21.1]} 43... Kf6 {[%clk 0:10:23.7]} 44. Rxg4 {[%clk 0:07:32.7]} 44... Kxe6 {[%clk 0:09:47.7]} 45. Rg3 {[%clk 0:06:15.4]} 45... Ra5 {[%clk 0:09:10.7]} 46. Kf2 {[%clk 0:06:12.3]} 46... Kd6 {[%clk 0:07:05.8]} 47. Re3 {[%clk 0:05:41.8]} 47... e5 {[%clk 0:06:18]} 48. Kf3 {[%clk 0:05:35.9]} 48... Kd5 {[%clk 0:05:29.5]} 49. Rd3+ {[%clk 0:04:47]} 49... Kc4 {[%clk 0:05:31.5]} 50. Re3 {[%clk 0:04:45.8]} 50... h5 {[%clk 0:04:54.3]} 51. h4 {[%clk 0:04:37.9]} 51... Kd5 {[%clk 0:04:12.4]} 52. Rd3+ {[%clk 0:04:30.4]} 52... Ke6 {[%clk 0:04:14.3]} 53. Re3 {[%clk 0:04:22.6]} 53... Ra4 {[%clk 0:04:09.2]} 54. Kg3 {[%clk 0:03:30.5]} 54... Kd5 {[%clk 0:03:43.9]} 55. Rb3 {[%clk 0:02:48.7]} 55... Rg4+ {[%clk 0:02:24.9]} 56. Kh3 {[%clk 0:02:43.1]} 56... e4 {[%clk 0:02:11.1]} 57. a4 {[%clk 0:02:32.5]} 57... Kd4 {[%clk 0:01:39.7]} 58. a5 {[%clk 0:02:28.7]} 58... e3 {[%clk 0:01:33.2]} 59. Rb1 {[%clk 0:01:43.7]} 59... e2 {[%clk 0:01:30.9]} 60. a6 {[%clk 0:01:41.9]} 60... Kd3 {[%clk 0:00:47.8]} 61. Ra1 {[%clk 0:01:22.6]} 61... Re4 {[%clk 0:00:30.4]} 62. a7 {[%clk 0:01:14.5]} 62... Re8 {[%clk 0:00:33.4]} 63. a8=Q {[%clk 0:00:47]} 63... Rxa8 {[%clk 0:00:35.6]} 64. Rxa8 {[%clk 0:00:51.1]} 64... e1=Q {[%clk 0:00:38.6]} 65. Rd8+ {[%clk 0:00:48]} 65... Kc4 {[%clk 0:00:39.7]} 66. Rc8+ {[%clk 0:00:13.3]} 66... Kd5 {[%clk 0:00:42.5]} 0-1

[Event "Live Chess"]
[Site "Chess.com"]
[Date "2021.04.16"]
[Round "3"]
[White "nycsheep"]
[Black "swimgrass"]
[Result "0-1"]
[CurrentPosition "6K1/2p5/2Pk4/8/8/8/8/8 w - -"]
[Timezone "UTC"]
[ECO "C00"]
[ECOUrl "https://www.chess.com/openings/French-Defense-Schlechter-Variation"]
[UTCDate "2021.04.16"]
[UTCTime "01:30:31"]
[WhiteElo "1769"]
[BlackElo "1363"]
[TimeControl "3600+5"]
[Termination "swimgrass won by resignation"]
[StartTime "01:30:31"]
[EndDate "2021.04.16"]
[EndTime "02:37:41"]
[Link "https://www.chess.com/game/live/12275763935"]

1. e4 {[%clk 1:00:02.6]} 1... e6 {[%clk 1:00:02]} 2. d4 {[%clk 1:00:05.2]} 2... d5 {[%clk 1:00:02.8]} 3. Bd3 {[%clk 1:00:08.6]} 3... dxe4 {[%clk 0:59:58]} 4. Bxe4 {[%clk 1:00:10.3]} 4... Nf6 {[%clk 0:59:56]} 5. Bf3 {[%clk 1:00:12.2]} 5... g6 {[%clk 0:59:49.7]} 6. Ne2 {[%clk 1:00:06.4]} 6... Bg7 {[%clk 0:59:45.3]} 7. Bg5 {[%clk 0:59:57.5]} 7... O-O {[%clk 0:59:46.9]} 8. O-O {[%clk 0:59:58.8]} 8... h6 {[%clk 0:59:30.6]} 9. Be3 {[%clk 0:59:37.6]} 9... Nc6 {[%clk 0:59:25.4]} 10. Qd2 {[%clk 0:57:40.8]} 10... Nd5 {[%clk 0:58:41.2]} 11. Bxh6 {[%clk 0:57:15.8]} 11... b6 {[%clk 0:58:21.5]} 12. Bxg7 {[%clk 0:57:09.8]} 12... Kxg7 {[%clk 0:58:20.1]} 13. c4 {[%clk 0:56:34.1]} 13... Nde7 {[%clk 0:58:18]} 14. Nbc3 {[%clk 0:55:47.7]} 14... Bb7 {[%clk 0:58:15.5]} 15. Rfd1 {[%clk 0:55:06.2]} 15... Rb8 {[%clk 0:57:53.2]} 16. Rac1 {[%clk 0:52:57.7]} 16... Na5 {[%clk 0:57:33.1]} 17. Bxb7 {[%clk 0:52:52.8]} 17... Nxb7 {[%clk 0:57:23.7]} 18. b4 {[%clk 0:52:40.4]} 18... a5 {[%clk 0:56:51.8]} 19. a3 {[%clk 0:52:30.3]} 19... axb4 {[%clk 0:56:42.9]} 20. axb4 {[%clk 0:52:33.3]} 20... Nd6 {[%clk 0:56:44.5]} 21. d5 {[%clk 0:49:36.3]} 21... exd5 {[%clk 0:56:33.2]} 22. Nxd5 {[%clk 0:49:32.9]} 22... Nxd5 {[%clk 0:56:20.7]} 23. Qxd5 {[%clk 0:49:20]} 23... Re8 {[%clk 0:56:14.9]} 24. Nd4 {[%clk 0:48:49.2]} 24... Qf6 {[%clk 0:55:38.9]} 25. Nc6 {[%clk 0:47:38.9]} 25... Ra8 {[%clk 0:55:24.4]} 26. Qd4 {[%clk 0:43:04.6]} 26... Qxd4 {[%clk 0:55:11.6]} 27. Nxd4 {[%clk 0:43:08]} 27... Ra4 {[%clk 0:55:10.5]} 28. c5 {[%clk 0:42:42.4]} 28... bxc5 {[%clk 0:55:01.1]} 29. bxc5 {[%clk 0:42:42.7]} 29... Ne4 {[%clk 0:54:49]} 30. f3 {[%clk 0:42:31.4]} 30... Nf6 {[%clk 0:54:30.2]} 31. Nb5 {[%clk 0:41:35.9]} 31... Ra2 {[%clk 0:53:37.8]} 32. Nc3 {[%clk 0:40:52.3]} 32... Ra5 {[%clk 0:53:29.9]} 33. Nd5 {[%clk 0:39:30.6]} 33... Re5 {[%clk 0:52:14.7]} 34. Nxf6 {[%clk 0:37:05.5]} 34... Kxf6 {[%clk 0:52:14]} 35. c6 {[%clk 0:36:57.7]} 35... Re7 {[%clk 0:51:52.6]} 36. Rd2 {[%clk 0:34:32.6]} 36... Ra6 {[%clk 0:51:43.5]} 37. Kf2 {[%clk 0:33:01]} 37... Re6 {[%clk 0:49:16.6]} 38. Rdc2 {[%clk 0:32:53.6]} 38... Rd6 {[%clk 0:48:50.5]} 39. h3 {[%clk 0:32:33.6]} 39... Kg7 {[%clk 0:48:31.8]} 40. g4 {[%clk 0:32:18.1]} 40... Re6 {[%clk 0:47:40.7]} 41. Kg3 {[%clk 0:32:04.9]} 41... Rd6 {[%clk 0:46:51.6]} 42. g5 {[%clk 0:31:23.8]} 42... Rd5 {[%clk 0:46:34.1]} 43. Rc5 {[%clk 0:31:21.2]} 43... Rd6 {[%clk 0:44:50]} 44. h4 {[%clk 0:31:14.1]} 44... Re6 {[%clk 0:44:43.7]} 45. Kg4 {[%clk 0:31:10.3]} 45... Ra4+ {[%clk 0:44:42.2]} 46. R1c4 {[%clk 0:31:10.9]} 46... Ra6 {[%clk 0:43:48.9]} 47. f4 {[%clk 0:31:04.1]} 47... Rb6 {[%clk 0:43:23.3]} 48. h5 {[%clk 0:30:58.1]} 48... gxh5+ {[%clk 0:42:33.1]} 49. Kxh5 {[%clk 0:31:00.7]} 49... Re1 {[%clk 0:42:24.4]} 50. Re5 {[%clk 0:30:04.3]} 50... Rxe5 {[%clk 0:41:37.7]} 51. fxe5 {[%clk 0:30:07.7]} 51... Rb5 {[%clk 0:41:39.8]} 52. e6 {[%clk 0:29:18.6]} 52... fxe6 {[%clk 0:41:37.7]} 53. Re4 {[%clk 0:29:17]} 53... e5 {[%clk 0:41:18]} 54. Rc4 {[%clk 0:28:43.6]} 54... Rd5 {[%clk 0:40:38.7]} 55. Rc3 {[%clk 0:27:22.3]} 55... e4 {[%clk 0:40:31.7]} 56. Rc4 {[%clk 0:26:29.2]} 56... Re5 {[%clk 0:39:48]} 57. Rd4 {[%clk 0:25:59.3]} 57... Re7 {[%clk 0:38:41.1]} 58. Rd7 {[%clk 0:25:23.2]} 58... Kf8 {[%clk 0:38:33.3]} 59. g6 {[%clk 0:25:16.4]} 59... e3 {[%clk 0:38:35.7]} 60. Kh6 {[%clk 0:25:14.1]} 60... e2 {[%clk 0:38:36.5]} 61. Rxe7 {[%clk 0:25:17.8]} 61... Kxe7 {[%clk 0:38:37.1]} 62. g7 {[%clk 0:25:21.3]} 62... e1=Q {[%clk 0:38:40.5]} 63. g8=Q {[%clk 0:25:20.7]} 63... Qh4+ {[%clk 0:38:43.4]} 64. Kg7 {[%clk 0:25:23.1]} 64... Qg5+ {[%clk 0:38:45.5]} 65. Kh8 {[%clk 0:25:26.9]} 65... Qxg8+ {[%clk 0:38:49.1]} 66. Kxg8 {[%clk 0:25:31.1]} 66... Kd6 {[%clk 0:38:52.8]} 0-1

[Event "Live Chess"]
[Site "Chess.com"]
[Date "2021.04.16"]
[Round "3"]
[White "mu3tang"]
[Black "Bruce_Hedman"]
[Result "1-0"]
[CurrentPosition "5Q2/3k2K1/4b3/R6p/3P3P/8/8/8 b - -"]
[Timezone "UTC"]
[ECO "C18"]
[ECOUrl "https://www.chess.com/openings/French-Defense-Winawer-Advance-Variation-4...c5-5.a3-Bxc3-6.bxc3"]
[UTCDate "2021.04.16"]
[UTCTime "01:30:30"]
[WhiteElo "1765"]
[BlackElo "1035"]
[TimeControl "3600+5"]
[Termination "mu3tang won by resignation"]
[StartTime "01:30:30"]
[EndDate "2021.04.16"]
[EndTime "03:14:30"]
[Link "https://www.chess.com/game/live/12275764189"]

1. e4 {[%clk 1:00:03.9]} 1... e6 {[%clk 0:59:54.7]} 2. d4 {[%clk 1:00:03.4]} 2... d5 {[%clk 0:59:55.4]} 3. Nc3 {[%clk 0:59:47.3]} 3... Bb4 {[%clk 0:59:53.3]} 4. e5 {[%clk 0:59:30.1]} 4... c5 {[%clk 0:59:47.9]} 5. a3 {[%clk 0:59:16.2]} 5... Bxc3+ {[%clk 0:59:49.2]} 6. bxc3 {[%clk 0:59:18.1]} 6... Nc6 {[%clk 0:59:48.8]} 7. Nf3 {[%clk 0:59:03.1]} 7... Bd7 {[%clk 0:59:33.6]} 8. Be2 {[%clk 0:58:55.1]} 8... Nge7 {[%clk 0:59:29.9]} 9. O-O {[%clk 0:58:52]} 9... O-O {[%clk 0:59:20.9]} 10. Bd3 {[%clk 0:58:03.9]} 10... Nf5 {[%clk 0:58:49.5]} 11. Bxf5 {[%clk 0:57:23.5]} 11... exf5 {[%clk 0:58:40.8]} 12. Bg5 {[%clk 0:57:16.7]} 12... Qc7 {[%clk 0:56:11.2]} 13. Re1 {[%clk 0:56:35]} 13... cxd4 {[%clk 0:54:41.9]} 14. cxd4 {[%clk 0:56:25.4]} 14... Be6 {[%clk 0:52:47.7]} 15. Bf4 {[%clk 0:54:03.7]} 15... h6 {[%clk 0:51:56.2]} 16. Qd2 {[%clk 0:51:35.3]} 16... Ne7 {[%clk 0:50:57]} 17. h4 {[%clk 0:51:13.1]} 17... Ng6 {[%clk 0:50:20.7]} 18. Rec1 {[%clk 0:50:19.8]} 18... Qe7 {[%clk 0:48:30.8]} 19. g3 {[%clk 0:49:38.8]} 19... f6 {[%clk 0:46:56.5]} 20. exf6 {[%clk 0:49:20.7]} 20... Rxf6 {[%clk 0:44:25.4]} 21. Re1 {[%clk 0:47:47.6]} 21... Nxf4 {[%clk 0:41:53.3]} 22. Qxf4 {[%clk 0:47:48.1]} 22... Rd8 {[%clk 0:36:16.2]} 23. a4 {[%clk 0:44:44.9]} 23... a5 {[%clk 0:35:54.6]} 24. Qd2 {[%clk 0:42:57.1]} 24... b6 {[%clk 0:34:29.1]} 25. Ne5 {[%clk 0:40:48.9]} 25... Qd6 {[%clk 0:32:43.9]} 26. Reb1 {[%clk 0:36:21.9]} 26... Rdf8 {[%clk 0:30:07.8]} 27. Qf4 {[%clk 0:35:54.4]} 27... Bf7 {[%clk 0:26:42.7]} 28. Rb5 {[%clk 0:34:20]} 28... Bh5 {[%clk 0:24:53.1]} 29. Rab1 {[%clk 0:33:27.2]} 29... Rb8 {[%clk 0:23:17.5]} 30. Nd7 {[%clk 0:32:20]} 30... Qxf4 {[%clk 0:20:09.4]} 31. Nxf6+ {[%clk 0:32:12.2]} 31... Kf7 {[%clk 0:19:36]} 32. gxf4 {[%clk 0:32:17.1]} 32... Kxf6 {[%clk 0:19:31.9]} 33. Rxb6+ {[%clk 0:30:21]} 33... Rxb6 {[%clk 0:19:32.8]} 34. Rxb6+ {[%clk 0:30:20.6]} 34... Ke7 {[%clk 0:19:16.7]} 35. Ra6 {[%clk 0:29:19.9]} 35... Bd1 {[%clk 0:19:10.8]} 36. Rxa5 {[%clk 0:28:03.9]} 36... Bxc2 {[%clk 0:19:08.1]} 37. Rxd5 {[%clk 0:28:07.6]} 37... Bxa4 {[%clk 0:18:34.2]} 38. Rxf5 {[%clk 0:27:41.4]} 38... Bc2 {[%clk 0:18:25.4]} 39. Rc5 {[%clk 0:26:16.6]} 39... Bb3 {[%clk 0:17:43.6]} 40. Kg2 {[%clk 0:24:41]} 40... Kd6 {[%clk 0:17:24]} 41. Kf3 {[%clk 0:22:40]} 41... Bd1+ {[%clk 0:15:08.3]} 42. Kg3 {[%clk 0:21:40.7]} 42... Bb3 {[%clk 0:14:44.5]} 43. Kg4 {[%clk 0:21:30.9]} 43... g6 {[%clk 0:13:07]} 44. Ra5 {[%clk 0:21:17.6]} 44... Bc4 {[%clk 0:12:28.3]} 45. f5 {[%clk 0:19:57.9]} 45... gxf5+ {[%clk 0:12:07.9]} 46. Kxf5 {[%clk 0:19:56.9]} 46... Bd3+ {[%clk 0:11:30.8]} 47. Kf6 {[%clk 0:19:56.7]} 47... Be2 {[%clk 0:10:56.4]} 48. f4 {[%clk 0:19:48.3]} 48... h5 {[%clk 0:10:26.4]} 49. Kg7 {[%clk 0:18:51.3]} 49... Bg4 {[%clk 0:09:05.8]} 50. f5 {[%clk 0:18:42.5]} 50... Ke7 {[%clk 0:08:51]} 51. f6+ {[%clk 0:18:16.6]} 51... Kd7 {[%clk 0:07:33.9]} 52. f7 {[%clk 0:18:21.5]} 52... Be6 {[%clk 0:07:05]} 53. f8=Q {[%clk 0:18:22]} 1-0

[Event "Live Chess"]
[Site "Chess.com"]
[Date "2021.04.16"]
[Round "3"]
[White "figsnoring"]
[Black "DoctorBanner"]
[Result "0-1"]
[CurrentPosition "5k2/5ppp/8/8/6P1/3p1b1P/2rp4/3K4 w - -"]
[Timezone "UTC"]
[ECO "C78"]
[ECOUrl "https://www.chess.com/openings/Ruy-Lopez-Opening-Morphy-Defense-Wing-Attack"]
[UTCDate "2021.04.16"]
[UTCTime "01:30:33"]
[WhiteElo "999"]
[BlackElo "1700"]
[TimeControl "3600+5"]
[Termination "DoctorBanner won by checkmate"]
[StartTime "01:30:33"]
[EndDate "2021.04.16"]
[EndTime "02:27:42"]
[Link "https://www.chess.com/game/live/12275764731"]

1. e4 {[%clk 0:59:58.6]} 1... e5 {[%clk 1:00:02.5]} 2. Nf3 {[%clk 0:59:56.4]} 2... Nc6 {[%clk 1:00:04.8]} 3. Bb5 {[%clk 0:59:49.3]} 3... a6 {[%clk 1:00:08]} 4. Ba4 {[%clk 0:59:52]} 4... Nf6 {[%clk 1:00:07.7]} 5. O-O {[%clk 0:59:52.4]} 5... b5 {[%clk 1:00:10.2]} 6. Bb3 {[%clk 0:59:55.6]} 6... Be7 {[%clk 0:59:26.8]} 7. a4 {[%clk 0:59:55.1]} 7... b4 {[%clk 0:58:51.3]} 8. c3 {[%clk 0:59:08.2]} 8... Nxe4 {[%clk 0:57:52.3]} 9. Re1 {[%clk 0:58:35.7]} 9... d5 {[%clk 0:56:35.8]} 10. d3 {[%clk 0:58:23.8]} 10... Nf6 {[%clk 0:55:28.4]} 11. Nxe5 {[%clk 0:58:21.3]} 11... Nxe5 {[%clk 0:55:15.3]} 12. Rxe5 {[%clk 0:58:22.1]} 12... O-O {[%clk 0:55:15.6]} 13. Qf3 {[%clk 0:57:02.2]} 13... Bg4 {[%clk 0:54:15.6]} 14. Qf4 {[%clk 0:56:14]} 14... Bd6 {[%clk 0:52:55.4]} 15. cxb4 {[%clk 0:54:05.1]} 15... Bxe5 {[%clk 0:52:37.1]} 16. Qxe5 {[%clk 0:54:04.2]} 16... Re8 {[%clk 0:52:36.9]} 17. Qc3 {[%clk 0:54:02.9]} 17... d4 {[%clk 0:52:39]} 18. Qd2 {[%clk 0:53:31.2]} 18... Re2 {[%clk 0:52:35.8]} 19. Qd1 {[%clk 0:52:50.2]} 19... Rxf2 {[%clk 0:51:06]} 20. Qe1 {[%clk 0:51:20.3]} 20... Re2 {[%clk 0:50:35]} 21. Qg3 {[%clk 0:50:35]} 21... Qd6 {[%clk 0:45:56.4]} 22. Qxd6 {[%clk 0:47:10.8]} 22... cxd6 {[%clk 0:44:49.6]} 23. Na3 {[%clk 0:46:51.4]} 23... Rc8 {[%clk 0:43:42]} 24. h3 {[%clk 0:46:25.2]} 24... Bf5 {[%clk 0:39:55.1]} 25. Bc4 {[%clk 0:46:13.9]} 25... d5 {[%clk 0:39:37.6]} 26. Bxa6 {[%clk 0:45:45.3]} 26... Re1+ {[%clk 0:39:36.5]} 27. Kf2 {[%clk 0:45:43.9]} 27... Rcxc1 {[%clk 0:39:37.7]} 28. Rxc1 {[%clk 0:45:37.8]} 28... Rxc1 {[%clk 0:39:40.7]} 29. Ke2 {[%clk 0:45:38.8]} 29... Kf8 {[%clk 0:34:47]} 30. b5 {[%clk 0:45:31]} 30... Nd7 {[%clk 0:32:24.2]} 31. a5 {[%clk 0:45:24.1]} 31... Nc5 {[%clk 0:30:52.5]} 32. b6 {[%clk 0:44:53.7]} 32... Nxa6 {[%clk 0:30:16.9]} 33. b7 {[%clk 0:44:15.6]} 33... Rc7 {[%clk 0:29:48]} 34. b8=Q+ {[%clk 0:43:58.7]} 34... Nxb8 {[%clk 0:29:50.1]} 35. b4 {[%clk 0:43:49.3]} 35... Rc3 {[%clk 0:29:46.2]} 36. b5 {[%clk 0:41:03]} 36... Rxa3 {[%clk 0:29:46.7]} 37. a6 {[%clk 0:41:05.6]} 37... Nxa6 {[%clk 0:29:49.4]} 38. bxa6 {[%clk 0:40:50.1]} 38... Rxa6 {[%clk 0:29:52.1]} 39. Kf3 {[%clk 0:40:46.6]} 39... Bxd3 {[%clk 0:29:55.3]} 40. Kf4 {[%clk 0:40:50]} 40... Be4 {[%clk 0:30:00.2]} 41. Kg3 {[%clk 0:40:45.7]} 41... d3 {[%clk 0:30:05.1]} 42. Kf2 {[%clk 0:40:48.4]} 42... Rc6 {[%clk 0:30:10]} 43. Ke1 {[%clk 0:40:50.4]} 43... Rc2 {[%clk 0:30:13.9]} 44. Kd1 {[%clk 0:40:52.5]} 44... d2 {[%clk 0:30:18.8]} 45. Ke2 {[%clk 0:40:42.3]} 45... d4 {[%clk 0:30:18.1]} 46. g4 {[%clk 0:40:42.4]} 46... d3+ {[%clk 0:30:21.3]} 47. Kd1 {[%clk 0:40:39.6]} 47... Bf3# {[%clk 0:30:24.9]} 0-1